{"text_format":"1","workbook":"xlsx","n_sheets":5,"sheets":["Fattura","Clienti","Prodotti","MetodoPagamento","TipoDocumento"],"not_rendered":{"charts":0,"images":0,"macros":1,"external_links":0,"defined_names":125,"comments":1,"pivot_tables":0},"unopened":[],"bounds":{"document_bytes":16777216,"sheet_cells":100000,"rows_first":2000,"rows_last":500,"rows_between":2000,"halvings":0,"cell_chars":16384,"cell_head_chars":4096},"cells_cut":0,"cells_raw":0,"read":"whole","date_system":"1900"}

{"sheet":"Fattura","index":0,"n_rows":40,"n_cols":12,"rows_kept":40,"cut":false,"hidden":false,"merged":[[5,9,5,10],[6,9,6,10],[7,9,7,10],[2,9,2,10],[0,9,0,11],[3,9,3,10],[4,9,4,10],[1,10,1,11],[19,1,19,8],[0,5,0,6],[5,6,5,7],[3,2,3,3],[3,6,3,7],[4,6,4,7],[0,2,0,3],[16,3,16,6],[13,1,13,2],[2,1,2,4],[5,2,5,4],[8,6,8,7],[7,6,7,7],[14,5,14,6],[6,6,6,7],[18,1,18,3],[18,4,18,5],[12,3,12,6],[15,1,15,2],[15,3,15,8],[16,1,16,2],[13,3,13,6],[6,2,6,3],[7,2,7,3],[9,2,9,4],[8,2,8,4],[14,1,14,2],[14,3,14,4],[39,2,40,3],[39,4,40,6],[28,6,29,6],[31,7,32,8],[33,2,34,4],[33,6,34,6],[33,7,34,8],[28,7,29,8],[30,1,30,8],[31,1,32,1],[31,2,32,4],[31,6,32,6],[28,1,29,1],[28,2,29,5],[20,1,20,3],[21,1,21,3],[22,1,22,3],[23,1,23,3],[36,2,37,3],[33,1,34,1],[24,1,24,3],[25,1,25,8],[26,2,26,3],[27,2,27,3],[27,6,27,8],[36,4,37,6],[26,6,26,8]]}
[null,null,"Fattura n°",null,{"$f":"VLOOKUP(NOMECOMMITENTE,Clienti!A1:I113,9,FALSE)","v":0},"Data Fattura",null,{"$f":"VLOOKUP(NOMECOMMITENTE,Clienti!A1:J113,9,FALSE)","v":"00:00:00"},null,"Dati Essenziali Fuori stampa Fattura"]
[null,"       ","Corrado","Palmiero",null,null,null,null,null,"id codice univoco C.F."]
[null,"SERVIZI INFORMATICI",null,null,null,"Sig.","c",{"$f":"VLOOKUP(NOMECOMMITENTE,Clienti!A2:H113,2,FALSE)","v":0},null,"n° progressivo invio",null,"A5"]
[null,"Via",null,null,null,"Via",{"$f":"VLOOKUP(NOMECOMMITENTE,Clienti!A1:H113,3,FALSE)","v":0},null,null,"formato trasmissione",null,"FPR12"]
[null,48121,"Ravenna","Ra","IT","CAP",{"$f":"VLOOKUP(NOMECOMMITENTE,Clienti!A1:H113,4,FALSE)","v":0},null,null,"codice destinatario",null,"0000000"]
[null,"P.IVA",null,null,null,"Comune",{"$f":"VLOOKUP(NOMECOMMITENTE,Clienti!A1:H113,5,FALSE)","v":0},null,null,"regime fiscale",null,"RF01"]
[null,"tel.","389 1906439",null,null,"Provincia",{"$f":"VLOOKUP(NOMECOMMITENTE,Clienti!A1:H113,6,FALSE)","v":0},null,"IT","tipo documento",null,"TD01 "]
[null,"fax",null,null,null,"C. F.",{"$f":"VLOOKUP(NOMECOMMITENTE,Clienti!A1:H113,8,FALSE)","v":0},null,null,"divisa",null,"EUR"]
[null,"e_mail ","info@corradopalmiero.it",null,null,"P. IVA",{"$f":"VLOOKUP(NOMECOMMITENTE,Clienti!A1:H113,7,FALSE)","v":0}]
[null,"                              https://ilcondizionatore.net/","https://corradopalmiero.it"]
[]
[]
[null,null,null,"Modalità di Pagamento"]
[null,"Vostro Riferimento,",null," Contanti",null,null,null,{"$f":"VLOOKUP(MODALITAPAGAMENTOCOMMITTENTE,MetodoPagamento!A2:B17,2,FALSE)","v":"MP01"}]
[null,"Intestatario"]
[null,"Istituto Bancario"]
[null,"Codice IBAN"]
[]
[null,"Descrizione",null,null,"Quantità",null,"Prezzo","Importo","%IVA"]
[]
[null,null,null,null,"N",{"$f":"IF(Descrizione_RIGA1=\"\",0,VLOOKUP(Descrizione_RIGA1,Prodotti!A3:C147,3,FALSE))","v":0},{"$f":"IF(Descrizione_RIGA1=\"\",0,VLOOKUP(Descrizione_RIGA1,Prodotti!A3:C147,2,FALSE))","v":0},{"$f":"ROUND(F21*G21,2)","v":0},{"$f":"IF(Descrizione_RIGA1=\"\",0,VLOOKUP(Descrizione_RIGA1,Prodotti!A3:D161,4,FALSE))","v":0}]
[null,null,null,null,"N",{"$f":"IF(Descrizione_RIGA1=\"\",0,VLOOKUP(Descrizione_RIGA1,Prodotti!A3:C147,3,FALSE))","v":0},{"$f":"IF(Descrizione_RIGA2=\"\",0,VLOOKUP(Descrizione_RIGA2,Prodotti!A3:C147,2,FALSE))","v":0},{"$f":"ROUND(F22*G22,2)","v":0},{"$f":"IF(Descrizione_RIGA2=\"\",0,VLOOKUP(Descrizione_RIGA2,Prodotti!A3:D161,4,FALSE))","v":0}]
[null,null,null,null,"N",{"$f":"IF(Descrizione_RIGA3=\"\",0,VLOOKUP(Descrizione_RIGA3,Prodotti!A3:C147,3,FALSE))","v":0},{"$f":"IF(Descrizione_RIGA3=\"\",0,VLOOKUP(Descrizione_RIGA3,Prodotti!A3:C147,2,FALSE))","v":0},{"$f":"ROUND(F23*G23,2)","v":0},{"$f":"IF(Descrizione_RIGA3=\"\",0,VLOOKUP(Descrizione_RIGA3,Prodotti!A3:D161,4,FALSE))","v":0}]
[null,null,null,null,"N",{"$f":"IF(Descrizione_RIGA4=\"\",0,VLOOKUP(Descrizione_RIGA4,Prodotti!A3:C147,3,FALSE))","v":0},{"$f":"IF(Descrizione_RIGA4=\"\",0,VLOOKUP(Descrizione_RIGA4,Prodotti!A3:C147,2,FALSE))","v":0},{"$f":"ROUND(F24*G24,2)","v":0},{"$f":"IF(Descrizione_RIGA4=\"\",0,VLOOKUP(Descrizione_RIGA4,Prodotti!A3:D161,4,FALSE))","v":0}]
[null,null,null,null,"N",{"$f":"IF(Descrizione_RIGA5=\"\",0,VLOOKUP(Descrizione_RIGA5,Prodotti!A3:C147,3,FALSE))","v":0},{"$f":"IF(Descrizione_RIGA5=\"\",0,VLOOKUP(Descrizione_RIGA5,Prodotti!A3:C147,2,FALSE))","v":0},{"$f":"ROUND(F25*G25,2)","v":0},{"$f":"IF(Descrizione_RIGA5=\"\",0,VLOOKUP(Descrizione_RIGA5,Prodotti!A3:D161,4,FALSE))","v":0}]
[]
[null,"Imponibile",{"$f":"SUMIF($I$21:$I$25,E27,$H$21:$H$25)","v":0},null,10,"Imposta ",{"$f":"10*Imponibile10/100","v":0}]
[null,"Imponibile",{"$f":"SUMIF($I$21:$I$25,E28,$H$21:$H$25)","v":0},null,22,"Imposta",{"$f":"22*Imponibile20/100","v":0}]
[null,"Tot. Imponibile",{"$f":"Imponibile10+Imponibile20","v":0},null,null,null,"Tot. Imposta",{"$f":"FLOOR(Tot._Imponibile+Imposta20+0.025,0.05)","v":0}]
[]
[]
[null,"Esenzioni",0,null,null,null,"Acconti"]
[]
[null,"Tot. Esenzioni",{"$f":"somma_Imponibile","v":0},null,null,null,"Tot. Documento",{"$f":"FLOOR(Tot._Imponibile+Tot._Imposta-Acconti-Tot._Esenzioni,2)","v":0}]
[]
[]
[null,null,"Netto a Pagare",null,{"$f":"Totale_imposta","v":0}]
[]
[]
[null,null,"Scadenza"]

{"sheet":"Clienti","index":1,"n_rows":10,"n_cols":10,"rows_kept":10,"cut":false,"hidden":false,"merged":[[0,0,0,1]]}
["Partner/Cliente",null,"Indirizzo","CAP","Località","Provincia","P. Iva","Codice Fiscale","N. Fattura","Data"]
[]
["Palmiero","Corrado","Via Fiume n°64",48122,"Ravenna","Ra",null,"PLMCRD70B10H199V",4,"2018-10-22"]
["Garibaldi","Giuseppe","Via Garibaldi n°98",48122,"Ravenna","Ra",null,"PLMCRD70B10H199V",5,"2018-10-23"]
["Rossi","Tizio","Via Roma n°4",48122,"Ravenna","Ra",null,"PLMCRD70B10H199V",{"$f":"ROW(I6:I64)","v":6},"2018-10-24"]
["Bianchi","Caio","Via Isonzo n°6",48122,"Ravenna","Ra",null,"PLMCRD70B10H199V",6,"2018-10-25"]
["Verdi","Marco","Via Po n°698",48122,"Ravenna","Ra",null,"PLMCRD70B10H199V",7,"2018-10-26"]
["Neri","Vivaldi","Via Adda n°684",48122,"Ravenna","Ra",null,"PLMCRD70B10H199V",{"$f":"ROW(I9:I67)","v":9},"2018-10-27"]
["Pisello","Vittorio","Via Tevere n°24",48122,"Ravenna","Ra",null,"PLMCRD70B10H199V",8,"2018-10-20"]
["c"]

{"sheet":"Prodotti","index":2,"n_rows":13,"n_cols":4,"rows_kept":13,"cut":false,"hidden":false,"merged":[]}
["Articolo","Prezzo","Quantità","%IVA"]
[]
["Aggiornamento Software",11.853,1,10]
[]
["Installazione S.O.",30,2,22]
["Creazione Sito Web Vetrina",250,2,10]
["Implementazione CMS",200,"2",22]
["Consulenza Informatica",15,"3",10]
["Attivazione Software ",20,"3",20]
["Assistenza su Rete",15,"4",22]
["Installazione Antivirus ",20,"4",10]
["Assistenza C/O Vostra Sede",15,"5",22]
["Implementazione file XLM per e_Fattura",50,"5",22]

{"sheet":"MetodoPagamento","index":3,"n_rows":17,"n_cols":2,"rows_kept":17,"cut":false,"hidden":false,"merged":[[0,0,0,1]]}
["Metodo di Pagamento"]
[" Contanti","MP01"]
["Assegno","MP02 "]
["Assegno circolare","MP03 "]
["Contanti presso Tesoreria","MP04 "]
["Bonifico","MP05 "]
["Vaglia cambiario","MP06 "]
["Bollettino bancario","MP07 "]
["Carta di pagamento","MP08 "]
["RID","MP09 "]
["RID utenze","MP10 "]
["RID veloce","MP11 "]
["Riba","MP12 "]
["MAV","MP13 "]
["Quietanza erario stato","MP14 "]
[]
["Giroconto su conti di contabilità speciale","MP15 "]

{"sheet":"TipoDocumento","index":4,"n_rows":8,"n_cols":2,"rows_kept":8,"cut":false,"hidden":false,"merged":[[0,0,0,1]]}
["Tipo Documento"]
["TD01 ","Fattura"]
["TD02 ","Acconto/Anticipo su fattura"]
["TD03 ","Acconto/Anticipo su parcella"]
["TD04 ","Nota di Credito"]
["TD05 ","Nota di Debito"]
["TD06 ","Parcella"]
["TD20 ","Autofattura"]